Cogmind - Beta 13 @@@ ROGUE MODE // 2024.05.20 @ 19:06:56 Player: Some Pennies Result: Destroyed by YI-UF0 with YI-UF0's Doublenader Performance ------------- Evolutions (0) 0 Regions Visited (4) 800 Robots Destroyed (38) 190 Value Destroyed (808) 808 Prototype IDs (28) 560 Alien Tech Used (0) 0 Bonus (0) 0 TOTAL SCORE: 2358 Bonus ------- None Cogmind --------- Core Integrity 0/250 Matter 291/300 Energy 160/160 System Corruption 0% Temperature Cool (96) Movement Core (1500) Ox29 Location -9/Mines Parts ------- > --- POWER (1) -------- Light Nuclear Core > --- PROPULSION (2) --- (None) > --- UTILITY (2) ------ Huge Storage Unit > --- WEAPON (2) ------- Beam Cannon Assault Rifle > --- INVENTORY (25) --- Makeshift Power Source Light Treads Light Treads Improved Heat Sink Medium Storage Unit Structural Scanner Experimental Sensor Array Improved Terrain Scanner Seismic Detector Seismic Detector ECM Suite Light Armor Plating Makeshift Hacking Suite Beam Cannon Assault Rifle Light Assault Rifle AWS/Gauss Grenade Launcher Datajack Makeshift Hammer Peak State ------------ > --- POWER ------------ Light Nuclear Core > --- PROPULSION ------- Light Treads Light Treads > --- UTILITY ---------- Huge Storage Unit Experimental Sensor Array > --- WEAPON ----------- Beam Cannon Assault Rifle > --- INVENTORY -------- Makeshift Power Source Light Treads Light Treads Improved Heat Sink Medium Storage Unit Structural Scanner Improved Terrain Scanner Seismic Detector Seismic Detector Seismic Detector ECM Suite Light Armor Plating Makeshift Hacking Suite Beam Cannon Assault Rifle Light Assault Rifle AWS/Gauss Grenade Launcher Datajack Makeshift Hammer [Rating: 21] Favorites ----------- Power Ion Engine Engine Ion Engine Power Core Light Nuclear Core Propulsion Light Treads Treads Light Treads Wheel Wheel Utility Seismic Detector Device Seismic Detector Storage Huge Storage Unit Protection Light Armor Plating Weapon Assault Rifle Energy Cannon Beam Cannon Ballistic Gun Assault Rifle Special Melee Weapon Datajack Build | -11 -10 -10 -10 -9 ------- Run | Yrd Mat Min Exi Min Slots Evolved . | . . . . . Power . | . . . . . Propulsion . | . . . . . Utility . | . . . . . Weapon . | . . . . . Parts Attached 29 | 8 13 3 3 2 Power 2 | 1 . . 1 . Engine 1 | 1 . . . . Core 1 | . . . 1 . Reactor . | . . . . . Propulsion 6 | 2 4 . . . Treads 5 | 1 4 . . . Leg . | . . . . . Wheel 1 | 1 . . . . Hover . | . . . . . Flight . | . . . . . Utility 13 | 2 7 2 . 2 Device 7 | 1 3 1 . 2 Storage 5 | 1 3 1 . . Processor . | . . . . . Hackware . | . . . . . Protection 1 | . 1 . . . Artifact . | . . . . . Weapon 8 | 3 2 1 2 . Energy Gun . | . . . . . Energy Cannon 2 | . 1 . 1 . Ballistic Gun 5 | 3 1 1 . . Ballistic Cannon . | . . . . . Launcher . | . . . . . Special Weapon . | . . . . . Impact Weapon . | . . . . . Slashing Weapon . | . . . . . Piercing Weapon . | . . . . . Special Melee Weapon 1 | . . . 1 . Unidentified Prototypes 1 | . . . . 1 Parts Lost 8 | . 3 2 . 3 Power 1 | . . 1 . . Propulsion 3 | . 1 . . 2 Utility 3 | . 2 . . 1 Weapon 1 | . . 1 . . Highest Loss Streak 3 | . 2 2 . 3 To Critical Strikes . | . . . . . Average Slot Usage (%) 92 | . 96 85 89 99 Engine 5 | . 14 . . . Core 3 | . . . 4 14 Treads 27 | . 27 28 28 27 Device 11 | . 6 14 14 13 Storage 14 | . 14 14 14 14 Protection 2 | . 6 . . . Energy Cannon 7 | . 6 14 . 14 Ballistic Gun 16 | . 20 14 14 14 Special Melee Weapon 4 | . . . 13 . Naked Turns . | . . . . . Heaviest Build 91 | 15 91 86 91 91 Greatest Support 40 | 10 40 40 40 40 Greatest Overweight (x) 2 | 1 2 2 2 2 Average Overweight (x) . | . . . 2 2 Largest Inventory Capacity 25 | 8 25 25 25 25 Average Capacity 20 | 7 15 21 25 25 Most Carried 21 | 4 13 17 21 21 Average Carried 14 | 2 10 15 18 20 Final Capacity 25 | 8 15 25 25 25 Final Carried 21 | 3 13 17 20 21 Class Distribution -------------------- 77% | Mutant 22% | Scavenger-Mutant Dominant Class ---------------- Mutant | -10/Materials Mutant | -10/Mines Mutant | -10/Exiles Scavenger-Mutant | -9/Mines Resources | -11 -10 -10 -10 -9 ----------- Run | Yrd Mat Min Exi Min Matter Collected 946 | 340 491 61 . 54 Remotely . | . . . . . Salvage Created 1245 | 117 889 239 . . Parts 93 | 9 66 18 . . Haulers Intercepted 2 | . 2 . . . Recyclers Shooed . | . . . . . Parts Field Recycled . | . . . . . Retrieved Matter . | . . . . . Parts Self-Destructed . | . . . . . Prevented . | . . . . . Kills | -11 -10 -10 -10 -9 ------- Run | Yrd Mat Min Exi Min Combat Hostiles Destroyed 23 | . 18 5 . . Guns 17 | . 15 2 . . Cannons 6 | . 3 3 . . Classes Destroyed 10 | 2 6 2 . . Worker 1 | . 1 . . . Builder 1 | . . 1 . . Tunneler 6 | 3 1 2 . . Hauler 2 | . 2 . . . Recycler 1 | 1 . . . . Operator 1 | . 1 . . . Watcher 3 | . 3 . . . Swarmer 6 | . 3 3 . . Grunt 15 | . 15 . . . Sentry 2 | . . 2 . . Best Kill Streak 6 | 2 6 4 . . Combat Bots Only 4 | . 4 3 . . Max Kills in Single Turn 2 | 1 2 2 . . Gunslinging . | . . . . . Exploded . | . . . . . Melee . | . . . . . Uniques/NPCs Destroyed . | . . . . . Combat | -11 -10 -10 -10 -9 -------- Run | Yrd Mat Min Exi Min Hostile Shots Fired 141 | . 89 38 . 14 Missed 37 | . 26 8 . 3 Damage Taken 1389 | . 695 316 . 378 Core 255 | . 79 87 . 89 Absorbed by Shields . | . . . . . Regen/Repaired (Parts) 205 | . 205 . . . Core Remaining (%) 100 | 100 . . . . Volleys Fired 106 | 10 72 18 . 6 Largest 2 | 2 2 2 . 2 Hottest 80 | 40 80 80 . 80 Shots Fired 211 | 20 144 35 . 12 Gun 166 | 20 123 17 . 6 Cannon 45 | . 21 18 . 6 Launcher . | . . . . . Special . | . . . . . Kinetic 166 | 20 123 17 . 6 Thermal 45 | . 21 18 . 6 Explosive . | . . . . . Electromagnetic . | . . . . . Robot Hit Streak 13 | 4 8 13 . 3 Robot Miss Streak 7 | 2 4 7 . 1 Penetration Max . | . . . . . Secondary Targets . | . . . . . Shots Hit Robots 136 | 13 89 22 5 7 Core Hits 56 | 5 41 10 . . Critical Kills . | . . . . . Critical Parts Destroyed . | . . . . . Critical Strikes . | . . . . . Melee Attacks 5 | . . . 5 . Impact . | . . . . . Slashing . | . . . . . Piercing . | . . . . . Sneak Attacks 5 | . . . 5 . Combat Hostiles 5 | . . . 5 . Follow-up Attacks . | . . . . . Damage Inflicted 1912 | 187 1259 360 . 106 Guns 1406 | 187 1048 119 . 52 Cannons 506 | . 211 241 . 54 Explosions . | . . . . . Melee . | . . . . . Ramming . | . . . . . Kinetic 1406 | 187 1048 119 . 52 Thermal 506 | . 211 241 . 54 Explosive . | . . . . . Electromagnetic . | . . . . . Impact . | . . . . . Slashing . | . . . . . Piercing . | . . . . . Highest Corruption . | . . . . . Average Corruption . | . . . . . Corruption Purged . | . . . . . Corruption Blocked . | . . . . . Overload Shots . | . . . . . Overflow Damage . | . . . . . Projectiles . | . . . . . Explosions . | . . . . . Melee . | . . . . . Knockbacks . | . . . . . Impact . | . . . . . Kinetic . | . . . . . Secondary . | . . . . . Self-Inflicted Damage . | . . . . . Shots . | . . . . . Rammed . | . . . . . Targets Rammed . | . . . . . Kicked . | . . . . . Crushed . | . . . . . Highest Temperature 203 | . 203 69 . 96 Average Temperature 48 | . 55 36 . 36 Received Heat Transfer 420 | . 366 54 . . Siege Activations . | . . . . . Robots Corrupted . | . . . . . Combat Hostiles . | . . . . . Parts Fried . | . . . . . Impact Corruptions . | . . . . . Robots Melted . | . . . . . Combat Hostiles . | . . . . . Parts Melted 2 | . 1 1 . . Heat Transferred 1073 | . 444 518 . 111 Parts Sabotaged . | . . . . . Parts Stolen . | . . . . . Parts Stripped . | . . . . . Power Chain Reactions . | . . . . . Alert | -11 -10 -10 -10 -9 ------- Run | Yrd Mat Min Exi Min Peak Influence 218 | 20 218 144 . . Initial 24 | . 13 24 . . Average 75 | 7 123 46 . . Maximum Alert Level 1 | . 1 . . . Low Security (%) 92 | 100 84 100 . 100 Level 1 7 | . 15 . . . Level 2 . | . . . . . Level 3 . | . . . . . Level 4 . | . . . . . Level 5 . | . . . . . High Security . | . . . . . Max Security . | . . . . . Squads Dispatched 5 | . 5 . . . Investigation 3 | . 3 . . . Extermination . | . . . . . Reinforcement 2 | . 2 . . . Assault . | . . . . . Garrison . | . . . . . Intercept . | . . . . . Searches Triggered . | . . . . . Construction Impeded . | . . . . . Haulers Reinforced . | . . . . . Active Scanning Responses . | . . . . . Cargo Convoy Interrupts . | . . . . . Stealth | -11 -10 -10 -10 -9 --------- Run | Yrd Mat Min Exi Min Distress Signals 1 | . 1 . . . Communications Jammed . | . . . . . Distress Signals . | . . . . . Times Spotted 32 | . 26 5 . 1 Peak Tracking Total 4 | . 4 3 . 1 Tactical Retreats 2 | . 2 . . . Traps | -11 -10 -10 -10 -9 ------- Run | Yrd Mat Min Exi Min Traps Triggered 2 | . 2 . . . Indirectly . | . . . . . Trap Hack Attempts . | . . . . . Triggered . | . . . . . Disarmed . | . . . . . Reprogrammed . | . . . . . Reused . | . . . . . Traps Extracted . | . . . . . Installed . | . . . . . Triggered . | . . . . . Machines | -11 -10 -10 -10 -9 ---------- Run | Yrd Mat Min Exi Min Machines Disabled . | . . . . . Max in Single Turn . | . . . . . Machines Repaired . | . . . . . Machines Dismantled . | . . . . . Machines Sabotaged . | . . . . . Overloaded Fab Kills . | . . . . . Hacking | -11 -10 -10 -10 -9 --------- Run | Yrd Mat Min Exi Min Machines Accessed 11 | . 9 . 2 . Terminals 6 | . 6 . . . Fabricators . | . . . . . Repair Stations 1 | . 1 . . . Recycling Units 2 | . 2 . . . Scanalyzers . | . . . . . Garrison Access . | . . . . . Total Hacks 32 | . 30 . 2 . Successful 15 | . 13 . 2 . Failed 17 | . 17 . . . Catastrophic 1 | . 1 . . . Database Lockouts . | . . . . . Manual 8 | . 7 . 1 . Terminals 23 | . 23 . . . Fabricators . | . . . . . Repair Stations 5 | . 5 . . . Recycling Units 2 | . 2 . . . Scanalyzers . | . . . . . Garrison Access . | . . . . . Terminal Hacks 8 | . 6 . 2 . Record 1 | . . . 1 . Robot Analysis 1 | . 1 . . . Prototype ID Bank 3 | . 3 . . . Locate Traps 1 | . 1 . . . Hauler Manifests 1 | . 1 . . . Derelict Proto ID Bank 1 | . . . 1 . Fabricator Hacks . | . . . . . Repair Station Hacks 4 | . 4 . . . Scan Component 2 | . 2 . . . Repair 2 | . 2 . . . Recycling Unit Hacks 2 | . 2 . . . Retrieve Components 2 | . 2 . . . Scanalyzer . | . . . . . Garrison Access Hacks . | . . . . . Unauthorized Hacks 1 | . 1 . . . Terminals 1 | . 1 . . . Botnet 1 | . 1 . . . Fabricators . | . . . . . Repair Stations . | . . . . . Recycling Units . | . . . . . Scanalyzers . | . . . . . Garrison Access . | . . . . . Data Cores Recovered . | . . . . . Used . | . . . . . Hacking Detections 7 | . 7 . . . Full Trace Events 1 | . 1 . . . Feedback Events . | . . . . . Feedback Blocked . | . . . . . Robot Schematics Acquired . | . . . . . Robots Built . | . . . . . Authchips . | . . . . . Time . | . . . . . Total Robot Build Rating . | . . . . . Part Schematics Acquired . | . . . . . Parts Built . | . . . . . Authchips . | . . . . . Time . | . . . . . Total Part Build Rating . | . . . . . Parts Repaired 2 | . 2 . . . Time 52 | . 52 . . . Parts Recycled . | . . . . . Recycled Matter . | . . . . . Retrieved Matter . | . . . . . Retrieved Components 5 | . 5 . . . Parts Scanalyzed . | . . . . . Part Schematics Acquired . | . . . . . Parts Damaged . | . . . . . Bothacking | -11 -10 -10 -10 -9 ------------ Run | Yrd Mat Min Exi Min Used RIF Installer . | . . . . . Robots Hacked . | . . . . . Non-combat . | . . . . . Combat . | . . . . . Robot Hacks Applied . | . . . . . Relay Couplers Released . | . . . . . Fabnet Peak Effective % . | . . . . . Robots Rewired 3 | . . . 3 . Allies Hacked . | . . . . . Hacks Repelled . | . . . . . Allies | -11 -10 -10 -10 -9 -------- Run | Yrd Mat Min Exi Min Total Allies 3 | . . . 3 . Largest Group 3 | . . . 3 3 Highest-Rated Group 24 | . . . 24 24 Highest-Rated Ally 8 | . . . 8 8 Total Orders . | . . . . . Ally Attacks . | . . . . . Total Damage . | . . . . . Kills . | . . . . . Allies Corrupted . | . . . . . Allies Melted . | . . . . . Intel | -11 -10 -10 -10 -9 ------- Run | Yrd Mat Min Exi Min Robot Analysis Total 1 | . 1 . . . Derelict Logs Recovered . | . . . . . Drone Launches . | . . . . . Drone Recoveries . | . . . . . Exploration | -11 -10 -10 -10 -9 ------------- Run | Yrd Mat Min Exi Min Turns Passed 4614 | 140 1615 826 1440 593 Spaces Moved 1817 | 102 771 320 446 178 Core 7 | 7 . . . . Treads 1669 | . 725 320 446 178 Legs . | . . . . . Wheels 141 | 95 46 . . . Hover . | . . . . . Flight . | . . . . . Fastest Speed 50 | 50 95 160 320 320 Average Speed 226 | 89 163 238 320 320 Slowest Speed 320 | 95 320 320 320 320 Overloaded Moves . | . . . . . Propulsion Burnouts . | . . . . . Robots Hopped . | . . . . . Cave-ins Triggered . | . . . . . Exploration Rate (%) 61 | 4 86 65 91 60 Regions Visited 4 Branch Regions 3 Pre-discovered Areas 1 | . . . 1 . Known Exits Taken . | . . . . . Unknown Exits Taken 4 | 1 1 1 1 . Scrap Searched 3 | . . 1 . 2 Spaces Dug . | . . . . . Terrain Destroyed . | . . . . . Melee . | . . . . . Projectile . | . . . . . AOE . | . . . . . Terrain Rammed . | . . . . . Walls Destroyed . | . . . . . Machines Disabled . | . . . . . Actions | -11 -10 -10 -10 -9 --------- Run | Yrd Mat Min Exi Min Total 2109 | 129 982 352 458 188 Wait 106 | . 104 1 . 1 Move 1813 | 101 770 319 445 178 Hop . | . . . . . Pick Up 42 | 10 19 8 4 1 Fast Attach . | . . . . . Attach 14 | 7 5 1 1 . Detach . | . . . . . Swap 15 | 1 8 2 2 2 Drop 8 | . 4 3 1 . Fire 106 | 10 72 18 . 6 Melee 5 | . . . 5 . Ram . | . . . . . Kick . | . . . . . Crush . | . . . . . Escape Stasis . | . . . . . Rewire . | . . . . . Trap . | . . . . . Miscellaneous . | . . . . . Route ------- -11/Scrapyard -10/Materials (discovered 4 exits: [*Mat x2] / [*Min x2]) -10/Mines (discovered 2 exits: [*Mat] / *Exi) -10/Exiles -9/Mines History --------- Turn | Location | Event 26 | -11/Scrapyard | Discovered new exit (range 15) 141 | -11/Scrapyard | Entered Materials 306 | -10/Materials | Build established: Mutant 350 | -10/Materials | Discovered new exit (range 13) 535 | -10/Materials | Discovered new exit (range 12) 989 | -10/Materials | Discovered new exit (range 14) 1265 | -10/Materials | Repaired Lgt. Treads 1294 | -10/Materials | Repaired Assault Rifle 1438 | -10/Materials | Discovered new exit (range 16) 1756 | -10/Materials | Entered Mines 1756 | -10/Mines | Discovered new exit (range 9) 2045 | -10/Mines | Core integrity fell below 50% 2570 | -10/Mines | Deemed a non-threat by the Exiles lab entrance 2570 | -10/Mines | Discovered new exit (range 5) 2582 | -10/Mines | Entered Exiles 2582 | -10/Exiles | Found Exiles lab destroyed 3062 | -10/Exiles | Opened EX-Vault 3084 | -10/Exiles | Found AWS/Gauss 3868 | -10/Exiles | Learned location of Zion (-6) 3872 | -10/Exiles | Build established: Scavenger-Mutant 3983 | -10/Exiles | Discovered new exit (range 14) 4022 | -10/Exiles | Entered Mines 4022 | -9/Mines | Accompanied by 3 allies 4055 | -9/Mines | Assembled infested the area 4060 | -9/Mines | Assisted by a Guerilla fighting off Assembled 4317 | -9/Mines | Found a damaged Exp. Sensor Array with a note attached 4323 | -9/Mines | Found Prototype Device 4324 | -9/Mines | Identified Exp. Sensor Array 4614 | -9/Mines | Core integrity fell below 20% 4615 | -9/Mines | Destroyed by YI-UF0 with YI-UF0's Doublenader Last Messages --------------- 04324_ Identified Exp. Sensor Array. 04333_ K-01 Serf collects debris. 04478_ The unstable cave ceiling collapses. 04504_ K-01 Serf collects debris. 04532_ Searching scrap... 04532_ Found Mace. 04532_ Found EM Shotgun. 04532_ Found Lrg. Storage Unit. 04532_ Found VTOL Module. 04532_ Found 28 Matter. 04533_ Acquired 28 matter. 04583_ The unstable cave ceiling collapses. 04600_ Mercenary 1a destroyed. 04600_ Mercenary 1c destroyed. 04603_ Seismic Detector destroyed. 04603_ YI-UF0: "BAROOM!" 04603_ Mercenary 1b destroyed. 04605_ Lgt. Treads destroyed. 04608_ The unstable cave ceiling collapses. 04613_ Lgt. Treads destroyed. Map ----- +----------------------------------------------------+ | ??????????????????????????????????????????????? | | ??????????????????????????????????????????????? | | ??????????????????????????????????????????????? | | ??????????????????????????????????????????????? | | ??????????????????????????????????????????????? | | ??????????????????????????????????????????????? | | ??????????????????????????????????????????????? | | ??????????????????????????????????????????????? | | ??????????????????????????????????????????????? | | ######????????????????????????????????????????? | | # ##?????????????????? ????????????????????? | | #?????????????????# ?? ?????????????????? | | ##???????????????? ?? ?????????????????? | | #??????????????## g## ?????????????????? | | #??????????????# #?????????????????? | | #?????????????## #?????????????????? | | ##????????????# ##????????????????? | | #????????????# #????????????????? | | # #????????????# #????????????????? | | ## #??????????#### #????????????????? | | ?# #?????###### #????????????????? | | ?# ###### = ###??????????????? | | ?# * #??????????????? | | ?## #???# #??????????????? | | ??## #??## #??????????????? | | ???# #??# @ #??????????????? | | ???# #??## ##??????????????? | | ???## ##??# #???????????????? | | ????## ##???# ##?###??????????? | | ?????## #######????# # ## ##?????????? | | ??????# #??????????# # ##=! #?????????? | | ??????# #??????????## / #?????????? | | ??????# #??????????# [ #?????????? | | ??????# #?????????## #### #????????? | | ??????# ########### # #????????? | | ??????# #### ##????????? | | ??????# ####??# #?????????? | | ??????######## ####?????## #?????????? | | ?????????????# ##?????????# #?????????? | | ?????????????# ##??????????# ##?????????? | | ?????????????## ##????????????#####??????????? | | ??????????????####????????????????????????????? | | ??????????????????????????????????????????????? | | ??????????????????????????????????????????????? | | ??????????????????????????????????????????????? | | ??????????????????????????????????????????????? | | ??????????????????????????????????????????????? | | | | | | | +----------------------------------------------------+ Best States ------------- Heat Dissipation 25 Energy Generation 14 Energy Capacity 250 Matter Stores 300 Matter Capacity 300 Sight Range 16 Terrain Scan Range 16 Terrain Scan Density 10 Armor Coverage 150 Evasion (%) 44 Recoil Reduction 2 Item Schematics ----------------- None Robot Schematics ------------------ None Fabricated ------------ Nothing Alien Tech Used ----------------- None Achievements -------------- None Challenges ------------ None Game ------ Seed PlatingArmageddonInterrupter Manual? 0 Play Time 00:20:33 Cumulative 75.9 hours Start 2024.05.20 @ 18:46:04 End 2024.05.20 @ 19:06:56 Sessions 3 Manual Loads 0 Difficulty Rogue Special Mode None Game No. 71 Rogue 66 Adventurer 5 Explorer 0 Win Type - Total 1 Types 1/0/0/0/0/0/0/0/0 Lore% 38 Gallery% 47 Achievement% 35 Wizard Run 0 Options --------- Layout 2 ASCII 0 Keyboard 0 Movement Mouse Keybinds 0 Fullscreen 2 Font 24/Smallcaps Map View 50x44 Zoom Use 0% Tactical HUD 1 Map Filters NONE Filters NONE Steam 1 RUN: ac687629-bba5-4351-8cbc-21748b5649ae